[Event "Titled Tuesday Blitz January 10 Early 2023"]
[White "Melaugh, Shane"]
[Black "Lahav, Michal"]
[WhiteFideId "2509580"]
[BlackFideId "2813742"]
[WhiteElo "2115"]
[BlackElo "2187"]
[Result "0-1"]
[Round "02"]
[TimeControl "180+2"]
[Date "2023.01.10"]
[WhiteClock "0:00:06"]
[BlackClock "0:00:06"]

1. c4 {[%clk 0:03:00]}  c5 {[%clk 0:02:49]} 2. Nc3 {[%clk 0:03:00]}  g6 {[%clk 0:02:34]} 3. g3 {[%clk 0:03:00]}  Bg7 {[%clk 0:02:34]} 4. Bg2 {[%clk 0:03:01]}  e5 {[%clk 0:02:34]} 5. e4 {[%clk 0:02:51]}  Ne7 {[%clk 0:02:34]} 6. Nge2 {[%clk 0:02:52]}  O-O {[%clk 0:02:34]} 7. d3 {[%clk 0:02:52]}  Nbc6 {[%clk 0:02:33]} 8. h4 {[%clk 0:02:52]}  d6 {[%clk 0:02:31]} 9. h5 {[%clk 0:02:52]}  a6 {[%clk 0:02:10]} 10. Be3 {[%clk 0:02:40]}  Rb8 {[%clk 0:02:08]} 11. a4 {[%clk 0:02:38]}  Nd4 {[%clk 0:02:01]} 12. h6 {[%clk 0:02:07]}  Bh8 {[%clk 0:02:00]} 13. Bg5 {[%clk 0:02:05]}  f6 {[%clk 0:01:50]} 14. Bd2 {[%clk 0:02:03]}  Nec6 {[%clk 0:01:51]} 15. Nxd4 {[%clk 0:02:02]}  Nxd4 {[%clk 0:01:50]} 16. O-O {[%clk 0:01:58]}  b5 {[%clk 0:01:49]} 17. axb5 {[%clk 0:01:58]}  axb5 {[%clk 0:01:50]} 18. cxb5 {[%clk 0:01:56]}  Nxb5 {[%clk 0:01:51]} 19. Nd5 {[%clk 0:01:55]}  Be6 {[%clk 0:01:40]} 20. Ba5 {[%clk 0:01:44]}  Qd7 {[%clk 0:01:31]} 21. Nc3 {[%clk 0:01:40]}  Nd4 {[%clk 0:01:26]} 22. Na4 {[%clk 0:01:26]}  Bb3 {[%clk 0:01:21]} 23. Qc1 {[%clk 0:01:09]}  Ne2+ {[%clk 0:01:10]} 24. Kh2 {[%clk 0:01:09]}  Nxc1 {[%clk 0:01:11]} 25. Nb6 {[%clk 0:01:07]}  Qb5 {[%clk 0:00:53]} 26. Rfxc1 {[%clk 0:01:05]}  Rxb6 {[%clk 0:00:53]} 27. Bxb6 {[%clk 0:01:06]}  Qxb6 {[%clk 0:00:53]} 28. Rc3 {[%clk 0:01:00]}  f5 {[%clk 0:00:47]} 29. exf5 {[%clk 0:00:55]}  gxf5 {[%clk 0:00:37]} 30. Rcc1 {[%clk 0:00:40]}  Bf6 {[%clk 0:00:36]} 31. Ra3 {[%clk 0:00:37]}  e4 {[%clk 0:00:28]} 32. Rb1 {[%clk 0:00:28]}  Bc2 {[%clk 0:00:22]} 33. Re1 {[%clk 0:00:26]}  Bxb2 {[%clk 0:00:21]} 34. Ra2 {[%clk 0:00:25]}  Bxd3 {[%clk 0:00:21]} 35. f3 {[%clk 0:00:23]}  Bc3 {[%clk 0:00:18]} 36. Rd1 {[%clk 0:00:22]}  Qb3 {[%clk 0:00:17]} 37. Rxd3 {[%clk 0:00:18]}  exd3 {[%clk 0:00:16]} 38. Ra7 {[%clk 0:00:17]}  d2 {[%clk 0:00:16]} 39. f4 {[%clk 0:00:16]}  d1=Q {[%clk 0:00:16]} 40. Rb7 {[%clk 0:00:14]}  Qxb7 {[%clk 0:00:13]} 41. Bxb7 {[%clk 0:00:15]}  Bd4 {[%clk 0:00:12]} 42. Kh3 {[%clk 0:00:11]}  Qf1+ {[%clk 0:00:07]} 43. Kh4 {[%clk 0:00:08]}  Kh8 {[%clk 0:00:06]} 44. Bd5 {[%clk 0:00:08]}  Qf2 {[%clk 0:00:06]} 45. Be6 {[%clk 0:00:07]}  Qh2+ {[%clk 0:00:06]} 46. Kg5 {[%clk 0:00:07]}  Bf6+ {[%clk 0:00:04]} 47. Kxf5 {[%clk 0:00:07]}  Bd4+ {[%clk 0:00:05]} 48. Kg4 {[%clk 0:00:06]}  Rf6 {[%clk 0:00:05]} 49. f5 {[%clk 0:00:04]}  Qxh6 {[%clk 0:00:05]} 50. Kf3 {[%clk 0:00:05]}  Qg5 {[%clk 0:00:05]} 51. g4 {[%clk 0:00:05]}  Rxe6 {[%clk 0:00:05]} 52. fxe6 {[%clk 0:00:05]}  Qf6+ {[%clk 0:00:06]} 53. Ke4 {[%clk 0:00:04]}  Qxe6+ {[%clk 0:00:06]} 54. Kf4 {[%clk 0:00:05]}  Qf6+ {[%clk 0:00:06]} 55. Kg3 {[%clk 0:00:04]}  Be5+ {[%clk 0:00:06]} 56. Kh3 {[%clk 0:00:04]}  Qf3+ {[%clk 0:00:07]} 57. Kh4 {[%clk 0:00:05]}  Qg3+ {[%clk 0:00:07]} 58. Kg5 {[%clk 0:00:05]}  Kg7 {[%clk 0:00:06]} 59. Kf5 {[%clk 0:00:06]}  Qf4+ {[%clk 0:00:06]} 60. Ke6 {[%clk 0:00:06]}  Qf7# {[%clk 0:00:06]} 0-1


[Site "https://www.chess.com"]

[Event "Titled Tuesday Blitz January 10 Early 2023"]
[White "Riverol, Jose"]
[Black "Della Corte, Alessandro"]
[WhiteFideId "3000427"]
[BlackFideId "813540"]
[WhiteElo "2304"]
[BlackElo "2160"]
[Result "0-1"]
[Round "02"]
[TimeControl "180+2"]
[Date "2023.01.10"]
[WhiteClock "0:00:22"]
[BlackClock "0:01:30"]

1. d4 {[%clk 0:03:00]}  d5 {[%clk 0:02:59]} 2. Nf3 {[%clk 0:03:00]}  Nf6 {[%clk 0:02:59]} 3. c4 {[%clk 0:03:00]}  e6 {[%clk 0:02:59]} 4. Nc3 {[%clk 0:03:01]}  Be7 {[%clk 0:03:00]} 5. Bg5 {[%clk 0:02:59]}  O-O {[%clk 0:03:00]} 6. e3 {[%clk 0:03:00]}  Nbd7 {[%clk 0:03:00]} 7. Rc1 {[%clk 0:02:59]}  dxc4 {[%clk 0:03:01]} 8. Bxc4 {[%clk 0:02:58]}  c5 {[%clk 0:03:01]} 9. O-O {[%clk 0:02:58]}  a6 {[%clk 0:03:02]} 10. a4 {[%clk 0:02:57]}  cxd4 {[%clk 0:03:01]} 11. Nxd4 {[%clk 0:02:57]}  Qa5 {[%clk 0:03:01]} 12. Bh4 {[%clk 0:02:53]}  Ne5 {[%clk 0:03:01]} 13. Bb3 {[%clk 0:02:51]}  Ng6 {[%clk 0:03:02]} 14. Bg3 {[%clk 0:02:50]}  e5 {[%clk 0:03:00]} 15. Nf3 {[%clk 0:02:41]}  Rd8 {[%clk 0:03:00]} 16. Qe2 {[%clk 0:02:40]}  Qb4 {[%clk 0:02:55]} 17. Qc4 {[%clk 0:02:27]}  Qxc4 {[%clk 0:02:53]} 18. Bxc4 {[%clk 0:02:28]}  Nd7 {[%clk 0:02:36]} 19. Rfd1 {[%clk 0:02:21]}  Kf8 {[%clk 0:02:36]} 20. Nd5 {[%clk 0:02:16]}  f6 {[%clk 0:02:28]} 21. Nc7 {[%clk 0:02:11]}  Nb6 {[%clk 0:02:22]} 22. Rxd8+ {[%clk 0:02:04]}  Bxd8 {[%clk 0:02:22]} 23. Nxa8 {[%clk 0:02:01]}  Nxa8 {[%clk 0:02:23]} 24. Nd2 {[%clk 0:01:27]}  Nb6 {[%clk 0:02:19]} 25. Bb3 {[%clk 0:01:27]}  Bd7 {[%clk 0:02:10]} 26. a5 {[%clk 0:01:15]}  Na4 {[%clk 0:02:10]} 27. Bxa4 {[%clk 0:01:06]}  Bxa4 {[%clk 0:02:11]} 28. Rc8 {[%clk 0:01:04]}  Ke7 {[%clk 0:02:12]} 29. b4 {[%clk 0:00:57]}  Bc6 {[%clk 0:02:11]} 30. e4 {[%clk 0:00:52]}  Kd7 {[%clk 0:02:11]} 31. Ra8 {[%clk 0:00:48]}  Nf8 {[%clk 0:02:08]} 32. f3 {[%clk 0:00:47]}  Ne6 {[%clk 0:02:07]} 33. Bf2 {[%clk 0:00:47]}  Nf4 {[%clk 0:01:57]} 34. Nb3 {[%clk 0:00:39]}  Nd3 {[%clk 0:01:56]} 35. Nc5+ {[%clk 0:00:38]}  Nxc5 {[%clk 0:01:56]} 36. Bxc5 {[%clk 0:00:38]}  h5 {[%clk 0:01:55]} 37. Kf2 {[%clk 0:00:37]}  Bb5 {[%clk 0:01:50]} 38. Ke3 {[%clk 0:00:36]}  Bf1 {[%clk 0:01:49]} 39. g3 {[%clk 0:00:36]}  Bb5 {[%clk 0:01:50]} 40. f4 {[%clk 0:00:35]}  Bc6 {[%clk 0:01:46]} 41. fxe5 {[%clk 0:00:33]}  fxe5 {[%clk 0:01:47]} 42. Bf8 {[%clk 0:00:33]}  g6 {[%clk 0:01:46]} 43. Bg7 {[%clk 0:00:30]}  Bc7 {[%clk 0:01:46]} 44. Rg8 {[%clk 0:00:27]}  Bd6 {[%clk 0:01:46]} 45. Bf8 {[%clk 0:00:26]}  Bxf8 {[%clk 0:01:32]} 46. Rxf8 {[%clk 0:00:27]}  Ke7 {[%clk 0:01:32]} 47. Rg8 {[%clk 0:00:27]}  Kf7 {[%clk 0:01:32]} 48. Rb8 {[%clk 0:00:24]}  Kf6 {[%clk 0:01:31]} 49. h3 {[%clk 0:00:23]}  g5 {[%clk 0:01:31]} 50. h4 {[%clk 0:00:23]}  gxh4 {[%clk 0:01:31]} 51. gxh4 {[%clk 0:00:23]}  Kg6 {[%clk 0:01:31]} 52. Rf8 {[%clk 0:00:22]}  Bd7 {[%clk 0:01:30]} 53. Rf5 {[%clk 0:00:22]}  Bxf5 {[%clk 0:01:30]} 0-1


[Site "https://www.chess.com"]

[Event "Titled Tuesday Blitz January 10 Early 2023"]
[White "Ivanova, Karina"]
[Black "Heinemann, Josefine"]
[WhiteFideId "24139750"]
[BlackFideId "12900460"]
[WhiteElo "2085"]
[BlackElo "2289"]
[Result "1/2-1/2"]
[Round "02"]
[TimeControl "180+2"]
[Date "2023.01.10"]
[WhiteClock "0:00:10"]
[BlackClock "0:00:18"]

1. Nf3 {[%clk 0:02:59]}  Nf6 {[%clk 0:02:58]} 2. g3 {[%clk 0:02:57]}  g6 {[%clk 0:02:57]} 3. Bg2 {[%clk 0:02:57]}  Bg7 {[%clk 0:02:57]} 4. O-O {[%clk 0:02:56]}  O-O {[%clk 0:02:57]} 5. d4 {[%clk 0:02:56]}  d5 {[%clk 0:02:57]} 6. c4 {[%clk 0:02:54]}  c6 {[%clk 0:02:56]} 7. b3 {[%clk 0:02:53]}  dxc4 {[%clk 0:02:55]} 8. bxc4 {[%clk 0:02:52]}  c5 {[%clk 0:02:56]} 9. Bb2 {[%clk 0:02:52]}  cxd4 {[%clk 0:02:52]} 10. Nxd4 {[%clk 0:02:46]}  Qb6 {[%clk 0:02:51]} 11. Nb3 {[%clk 0:02:43]}  Nc6 {[%clk 0:02:49]} 12. Nc3 {[%clk 0:02:39]}  Be6 {[%clk 0:02:47]} 13. c5 {[%clk 0:01:28]}  Qc7 {[%clk 0:02:37]} 14. Nb5 {[%clk 0:01:23]}  Qc8 {[%clk 0:02:36]} 15. Re1 {[%clk 0:01:21]}  Rd8 {[%clk 0:02:35]} 16. Qc1 {[%clk 0:01:17]}  Bh3 {[%clk 0:02:24]} 17. Bh1 {[%clk 0:01:13]}  a6 {[%clk 0:02:13]} 18. N5d4 {[%clk 0:01:10]}  Bd7 {[%clk 0:02:06]} 19. Bg2 {[%clk 0:00:57]}  Re8 {[%clk 0:01:26]} 20. Rd1 {[%clk 0:00:41]}  Nxd4 {[%clk 0:01:23]} 21. Nxd4 {[%clk 0:00:39]}  e5 {[%clk 0:01:22]} 22. c6 {[%clk 0:00:30]}  bxc6 {[%clk 0:01:02]} 23. Nxc6 {[%clk 0:00:27]}  e4 {[%clk 0:00:52]} 24. Ne5 {[%clk 0:00:19]}  Ba4 {[%clk 0:00:46]} 25. Re1 {[%clk 0:00:15]}  Qxc1 {[%clk 0:00:44]} 26. Raxc1 {[%clk 0:00:15]}  Rac8 {[%clk 0:00:45]} 27. Nc4 {[%clk 0:00:14]}  Red8 {[%clk 0:00:31]} 28. Nb6 {[%clk 0:00:09]}  Rxc1 {[%clk 0:00:29]} 29. Rxc1 {[%clk 0:00:09]}  Bb5 {[%clk 0:00:30]} 30. e3 {[%clk 0:00:07]}  h5 {[%clk 0:00:27]} 31. Bd4 {[%clk 0:00:07]}  Ng4 {[%clk 0:00:24]} 32. Bxg7 {[%clk 0:00:07]}  Kxg7 {[%clk 0:00:24]} 33. a4 {[%clk 0:00:06]}  Be8 {[%clk 0:00:24]} 34. Bxe4 {[%clk 0:00:06]}  Rd2 {[%clk 0:00:23]} 35. Rf1 {[%clk 0:00:05]}  Rb2 {[%clk 0:00:20]} 36. a5 {[%clk 0:00:05]}  Bb5 {[%clk 0:00:20]} 37. h3 {[%clk 0:00:03]}  Bxf1 {[%clk 0:00:20]} 38. hxg4 {[%clk 0:00:03]}  Bb5 {[%clk 0:00:20]} 39. gxh5 {[%clk 0:00:04]}  gxh5 {[%clk 0:00:21]} 40. Bb7 {[%clk 0:00:04]}  Ra2 {[%clk 0:00:21]} 41. Nd5 {[%clk 0:00:02]}  Rxa5 {[%clk 0:00:20]} 42. Nf4 {[%clk 0:00:03]}  Ra1+ {[%clk 0:00:18]} 43. Kg2 {[%clk 0:00:02]}  a5 {[%clk 0:00:18]} 44. Nxh5+ {[%clk 0:00:02]}  Kf8 {[%clk 0:00:19]} 45. Nf4 {[%clk 0:00:03]}  a4 {[%clk 0:00:19]} 46. Bd5 {[%clk 0:00:03]}  a3 {[%clk 0:00:19]} 47. Nh5 {[%clk 0:00:02]}  a2 {[%clk 0:00:19]} 48. Nf6 {[%clk 0:00:02]}  Ke7 {[%clk 0:00:15]} 49. Ne4 {[%clk 0:00:03]}  f5 {[%clk 0:00:14]} 50. Nc3 {[%clk 0:00:03]}  Bc6 {[%clk 0:00:13]} 51. Bxc6 {[%clk 0:00:02]}  Rc1 {[%clk 0:00:14]} 52. Nxa2 {[%clk 0:00:03]}  Rxc6 {[%clk 0:00:14]} 53. Nb4 {[%clk 0:00:03]}  Rc4 {[%clk 0:00:14]} 54. Nd3 {[%clk 0:00:03]}  Kf6 {[%clk 0:00:14]} 55. Nf4 {[%clk 0:00:03]}  Rc2 {[%clk 0:00:14]} 56. Kf3 {[%clk 0:00:03]}  Rb2 {[%clk 0:00:14]} 57. Nd5+ {[%clk 0:00:04]}  Ke5 {[%clk 0:00:15]} 58. Nf4 {[%clk 0:00:05]}  Ra2 {[%clk 0:00:15]} 59. Nd3+ {[%clk 0:00:05]}  Kf6 {[%clk 0:00:16]} 60. Nf4 {[%clk 0:00:06]}  Ra3 {[%clk 0:00:16]} 61. Nd5+ {[%clk 0:00:06]}  Ke5 {[%clk 0:00:15]} 62. Nf4 {[%clk 0:00:07]}  Rb3 {[%clk 0:00:15]} 63. Nh5 {[%clk 0:00:07]}  Ke6 {[%clk 0:00:15]} 64. Nf4+ {[%clk 0:00:07]}  Kf6 {[%clk 0:00:15]} 65. Nd5+ {[%clk 0:00:07]}  Ke5 {[%clk 0:00:16]} 66. Nf4 {[%clk 0:00:08]}  Rb2 {[%clk 0:00:17]} 67. Nh5 {[%clk 0:00:08]}  Ra2 {[%clk 0:00:16]} 68. Nf4 {[%clk 0:00:08]}  Kf6 {[%clk 0:00:17]} 69. Nd5+ {[%clk 0:00:08]}  Ke6 {[%clk 0:00:17]} 70. Nf4+ {[%clk 0:00:09]}  Ke5 {[%clk 0:00:18]} 71. Ng6+ {[%clk 0:00:09]}  Kf6 {[%clk 0:00:17]} 72. Nf4 {[%clk 0:00:09]}  Kg5 {[%clk 0:00:17]} 73. Ne6+ {[%clk 0:00:09]}  Kf6 {[%clk 0:00:18]} 74. Nf4 {[%clk 0:00:10]} 1/2-1/2


[Site "https://www.chess.com"]

[Event "Titled Tuesday Blitz January 10 Early 2023"]
[White "Erzhanov, Arman"]
[Black "Hon, Eric"]
[WhiteFideId "4138821"]
[BlackFideId "2097117"]
[WhiteElo "2228"]
[BlackElo "1897"]
[Result "0-1"]
[Round "02"]
[TimeControl "180+2"]
[Date "2023.01.10"]
[WhiteClock "0:00:18"]
[BlackClock "0:00:47"]

1. e4 {[%clk 0:03:00]}  c5 {[%clk 0:02:59]} 2. Nf3 {[%clk 0:03:01]}  d6 {[%clk 0:02:56]} 3. Bb5+ {[%clk 0:02:58]}  Bd7 {[%clk 0:02:56]} 4. Bxd7+ {[%clk 0:02:58]}  Qxd7 {[%clk 0:02:57]} 5. O-O {[%clk 0:02:58]}  Nf6 {[%clk 0:02:57]} 6. Re1 {[%clk 0:02:58]}  e5 {[%clk 0:02:57]} 7. c3 {[%clk 0:02:58]}  Nc6 {[%clk 0:02:57]} 8. d4 {[%clk 0:02:59]}  g6 {[%clk 0:02:53]} 9. a4 {[%clk 0:02:51]}  Bg7 {[%clk 0:02:52]} 10. Na3 {[%clk 0:02:51]}  O-O {[%clk 0:02:51]} 11. Nc4 {[%clk 0:02:52]}  cxd4 {[%clk 0:02:52]} 12. cxd4 {[%clk 0:02:52]}  exd4 {[%clk 0:02:49]} 13. Nxd4 {[%clk 0:02:52]}  Rfe8 {[%clk 0:02:45]} 14. Nb5 {[%clk 0:02:34]}  d5 {[%clk 0:02:36]} 15. Ncd6 {[%clk 0:02:21]}  Re6 {[%clk 0:02:17]} 16. exd5 {[%clk 0:02:19]}  Rxe1+ {[%clk 0:01:52]} 17. Qxe1 {[%clk 0:02:20]}  Nxd5 {[%clk 0:01:53]} 18. Qd1 {[%clk 0:01:29]}  a6 {[%clk 0:01:30]} 19. Qxd5 {[%clk 0:01:14]}  axb5 {[%clk 0:01:29]} 20. a5 {[%clk 0:00:59]}  Be5 {[%clk 0:01:02]} 21. Qxb5 {[%clk 0:00:32]}  Qxd6 {[%clk 0:00:55]} 22. Be3 {[%clk 0:00:32]}  Qb4 {[%clk 0:00:50]} 23. Qd5 {[%clk 0:00:19]}  Rxa5 {[%clk 0:00:49]} 24. Rxa5 {[%clk 0:00:18]}  Qxa5 {[%clk 0:00:49]} 25. Qd7 {[%clk 0:00:18]}  Qe1# {[%clk 0:00:47]} 0-1


[Site "https://www.chess.com"]

[Event "Titled Tuesday Blitz January 10 Early 2023"]
[White "Fabris, Alberto"]
[Black "Degenbaev, Aziz"]
[WhiteFideId "801348"]
[BlackFideId "13802640"]
[WhiteElo "2230"]
[BlackElo "2203"]
[Result "1-0"]
[Round "02"]
[TimeControl "180+2"]
[Date "2023.01.10"]
[WhiteClock "0:02:11"]
[BlackClock "0:01:53"]

1. e4 {[%clk 0:03:00]}  e6 {[%clk 0:02:57]} 2. d4 {[%clk 0:03:00]}  d5 {[%clk 0:02:57]} 3. Nc3 {[%clk 0:03:00]}  Nf6 {[%clk 0:02:55]} 4. Bg5 {[%clk 0:02:59]}  Be7 {[%clk 0:02:55]} 5. e5 {[%clk 0:02:59]}  Nfd7 {[%clk 0:02:55]} 6. Bxe7 {[%clk 0:02:59]}  Qxe7 {[%clk 0:02:56]} 7. Nb5 {[%clk 0:02:59]}  Na6 {[%clk 0:02:55]} 8. c3 {[%clk 0:02:57]}  O-O {[%clk 0:02:55]} 9. Bd3 {[%clk 0:02:50]}  c5 {[%clk 0:02:55]} 10. Nf3 {[%clk 0:02:43]}  cxd4 {[%clk 0:02:42]} 11. cxd4 {[%clk 0:02:41]}  Nb4 {[%clk 0:02:42]} 12. Bb1 {[%clk 0:02:37]}  b6 {[%clk 0:02:39]} 13. a3 {[%clk 0:02:36]}  Ba6 {[%clk 0:02:34]} 14. Nc3 {[%clk 0:02:32]}  Nc6 {[%clk 0:02:33]} 15. Bd3 {[%clk 0:02:31]}  Bxd3 {[%clk 0:02:31]} 16. Qxd3 {[%clk 0:02:30]}  a6 {[%clk 0:02:25]} 17. O-O {[%clk 0:02:27]}  b5 {[%clk 0:02:25]} 18. b4 {[%clk 0:02:25]}  Nb6 {[%clk 0:02:24]} 19. Nd2 {[%clk 0:02:23]}  Nc4 {[%clk 0:02:22]} 20. Nb3 {[%clk 0:02:22]}  h6 {[%clk 0:02:03]} 21. Nc5 {[%clk 0:02:20]}  Qh4 {[%clk 0:01:58]} 22. Ne2 {[%clk 0:02:17]}  Rfd8 {[%clk 0:01:55]} 23. g3 {[%clk 0:02:13]}  Qe4 {[%clk 0:01:53]} 24. Nxe4 {[%clk 0:02:12]}  dxe4 {[%clk 0:01:53]} 25. Qxe4 {[%clk 0:02:11]} 1-0


[Site "https://www.chess.com"]

[Event "Titled Tuesday Blitz January 10 Early 2023"]
[White "Cardozo Munar, Carlos Eduardo"]
[Black "Avazkhonov, Alikhon"]
[WhiteFideId "4409477"]
[BlackFideId "14208504"]
[WhiteElo "2043"]
[BlackElo "1538"]
[Result "0-1"]
[Round "02"]
[TimeControl "180+2"]
[Date "2023.01.10"]
[WhiteClock "0:00:23"]
[BlackClock "0:00:07"]

1. d4 {[%clk 0:02:48]}  Nf6 {[%clk 0:02:59]} 2. Bg5 {[%clk 0:02:48]}  Ne4 {[%clk 0:02:58]} 3. h4 {[%clk 0:02:48]}  c5 {[%clk 0:02:56]} 4. d5 {[%clk 0:02:48]}  Qb6 {[%clk 0:02:55]} 5. Nd2 {[%clk 0:02:47]}  h6 {[%clk 0:02:35]} 6. Nxe4 {[%clk 0:02:39]}  hxg5 {[%clk 0:02:35]} 7. Nxg5 {[%clk 0:02:40]}  Qxb2 {[%clk 0:02:34]} 8. Rb1 {[%clk 0:02:08]}  Qxa2 {[%clk 0:02:23]} 9. e4 {[%clk 0:02:07]}  g6 {[%clk 0:02:10]} 10. Rh3 {[%clk 0:01:49]}  Bg7 {[%clk 0:01:53]} 11. Rhb3 {[%clk 0:01:40]}  Qa5+ {[%clk 0:01:46]} 12. Qd2 {[%clk 0:01:20]}  Qxd2+ {[%clk 0:01:45]} 13. Kxd2 {[%clk 0:01:21]}  Rxh4 {[%clk 0:01:45]} 14. N1f3 {[%clk 0:01:21]}  Rh1 {[%clk 0:01:42]} 15. e5 {[%clk 0:01:17]}  d6 {[%clk 0:01:30]} 16. e6 {[%clk 0:01:16]}  Kf8 {[%clk 0:00:54]} 17. Nxf7 {[%clk 0:01:13]}  Rh5 {[%clk 0:00:44]} 18. c4 {[%clk 0:01:06]}  Na6 {[%clk 0:00:35]} 19. Bd3 {[%clk 0:01:05]}  Nb4 {[%clk 0:00:08]} 20. Bxg6 {[%clk 0:01:05]}  Rh6 {[%clk 0:00:09]} 21. Nxh6 {[%clk 0:01:04]}  Bxh6+ {[%clk 0:00:10]} 22. Ke2 {[%clk 0:01:03]}  b5 {[%clk 0:00:06]} 23. Bd3 {[%clk 0:00:35]}  bxc4 {[%clk 0:00:04]} 24. Bxc4 {[%clk 0:00:34]}  a5 {[%clk 0:00:05]} 25. Rh1 {[%clk 0:00:33]}  a4 {[%clk 0:00:05]} 26. Ra3 {[%clk 0:00:28]}  Bg7 {[%clk 0:00:05]} 27. Ng5 {[%clk 0:00:27]}  Bb2 {[%clk 0:00:05]} 28. Rf3+ {[%clk 0:00:28]}  Kg8 {[%clk 0:00:05]} 29. Bd3 {[%clk 0:00:20]}  Nxd3 {[%clk 0:00:04]} 30. Kxd3 {[%clk 0:00:21]}  a3 {[%clk 0:00:04]} 31. Kc2 {[%clk 0:00:21]}  Bf6 {[%clk 0:00:03]} 32. Ne4 {[%clk 0:00:21]}  Bg7 {[%clk 0:00:03]} 33. Rg3 {[%clk 0:00:21]}  a2 {[%clk 0:00:04]} 34. Kb3 {[%clk 0:00:18]}  a1=Q {[%clk 0:00:04]} 35. Rxa1 {[%clk 0:00:19]}  Rxa1 {[%clk 0:00:05]} 36. Ng5 {[%clk 0:00:19]}  Rb1+ {[%clk 0:00:05]} 37. Kc4 {[%clk 0:00:19]}  Rb4+ {[%clk 0:00:05]} 38. Kd3 {[%clk 0:00:19]}  Rd4+ {[%clk 0:00:06]} 39. Ke2 {[%clk 0:00:19]}  Rxd5 {[%clk 0:00:07]} 40. f4 {[%clk 0:00:19]}  Rf5 {[%clk 0:00:07]} 41. Kf3 {[%clk 0:00:19]}  Ba6 {[%clk 0:00:08]} 42. Kg4 {[%clk 0:00:19]}  Rf6 {[%clk 0:00:08]} 43. f5 {[%clk 0:00:19]}  Bc4 {[%clk 0:00:07]} 44. Rf3 {[%clk 0:00:19]}  Bh6 {[%clk 0:00:07]} 45. Ne4 {[%clk 0:00:19]}  Rf8 {[%clk 0:00:05]} 46. Kh5 {[%clk 0:00:17]}  Bg7 {[%clk 0:00:05]} 47. g4 {[%clk 0:00:17]}  Bf6 {[%clk 0:00:06]} 48. Kg6 {[%clk 0:00:17]}  Bd5 {[%clk 0:00:06]} 49. Re3 {[%clk 0:00:17]}  Bxe4 {[%clk 0:00:06]} 50. Rxe4 {[%clk 0:00:18]}  Bd4 {[%clk 0:00:06]} 51. g5 {[%clk 0:00:18]}  Bg7 {[%clk 0:00:06]} 52. f6 {[%clk 0:00:17]}  Bxf6 {[%clk 0:00:06]} 53. gxf6 {[%clk 0:00:17]}  Rxf6+ {[%clk 0:00:07]} 54. Kg5 {[%clk 0:00:18]}  d5 {[%clk 0:00:08]} 55. Re5 {[%clk 0:00:18]}  d4 {[%clk 0:00:06]} 56. Rxc5 {[%clk 0:00:18]}  Rxe6 {[%clk 0:00:06]} 57. Rd5 {[%clk 0:00:19]}  Rd6 {[%clk 0:00:04]} 58. Rxd6 {[%clk 0:00:19]}  exd6 {[%clk 0:00:05]} 59. Kf5 {[%clk 0:00:20]}  d3 {[%clk 0:00:05]} 60. Ke4 {[%clk 0:00:20]}  d2 {[%clk 0:00:06]} 61. Kd5 {[%clk 0:00:20]}  d1=Q+ {[%clk 0:00:07]} 62. Kc6 {[%clk 0:00:20]}  Qb3 {[%clk 0:00:07]} 63. Kxd6 {[%clk 0:00:20]}  Qc4 {[%clk 0:00:07]} 64. Ke5 {[%clk 0:00:21]}  Kf7 {[%clk 0:00:07]} 65. Kf5 {[%clk 0:00:21]}  Qd3+ {[%clk 0:00:07]} 66. Ke5 {[%clk 0:00:22]}  Ke7 {[%clk 0:00:07]} 67. Kf4 {[%clk 0:00:23]}  Qe2 {[%clk 0:00:07]} 68. Kf5 {[%clk 0:00:24]}  Qe3 {[%clk 0:00:07]} 69. Kg6 {[%clk 0:00:23]}  Qf4 {[%clk 0:00:07]} 70. Kg7 {[%clk 0:00:23]}  Qf5 {[%clk 0:00:07]} 0-1


[Site "https://www.chess.com"]

[Event "Titled Tuesday Blitz January 10 Early 2023"]
[White "Levine, David"]
[Black "Bon, Michael"]
[WhiteFideId "2011611"]
[BlackFideId "620696"]
[WhiteElo "2040"]
[BlackElo "2394"]
[Result "0-1"]
[Round "02"]
[TimeControl "180+2"]
[Date "2023.01.10"]
[WhiteClock "0:00:26"]
[BlackClock "0:00:02"]

1. d4 {[%clk 0:02:59]}  d5 {[%clk 0:02:59]} 2. c4 {[%clk 0:02:58]}  Nc6 {[%clk 0:02:59]} 3. cxd5 {[%clk 0:02:50]}  Qxd5 {[%clk 0:02:57]} 4. Nf3 {[%clk 0:02:50]}  e5 {[%clk 0:02:57]} 5. Nc3 {[%clk 0:02:49]}  Bb4 {[%clk 0:02:57]} 6. Bd2 {[%clk 0:02:48]}  Bxc3 {[%clk 0:02:57]} 7. Bxc3 {[%clk 0:02:48]}  e4 {[%clk 0:02:57]} 8. Ne5 {[%clk 0:02:48]}  e3 {[%clk 0:02:58]} 9. fxe3 {[%clk 0:02:46]}  Nf6 {[%clk 0:02:56]} 10. Nd3 {[%clk 0:02:35]}  O-O {[%clk 0:02:37]} 11. Nf4 {[%clk 0:02:35]}  Qg5 {[%clk 0:02:34]} 12. g3 {[%clk 0:02:34]}  Re8 {[%clk 0:02:17]} 13. Qc1 {[%clk 0:02:29]}  Ng4 {[%clk 0:02:07]} 14. Bd2 {[%clk 0:02:26]}  Bf5 {[%clk 0:02:00]} 15. Bg2 {[%clk 0:02:25]}  Nxh2 {[%clk 0:01:52]} 16. Kf2 {[%clk 0:02:14]}  Ng4+ {[%clk 0:01:49]} 17. Kg1 {[%clk 0:02:13]}  Be4 {[%clk 0:01:46]} 18. Bf3 {[%clk 0:02:10]}  Bxf3 {[%clk 0:01:05]} 19. exf3 {[%clk 0:02:09]}  Nxe3 {[%clk 0:01:05]} 20. Bxe3 {[%clk 0:02:07]}  Qxg3+ {[%clk 0:01:05]} 21. Ng2 {[%clk 0:02:08]}  Rad8 {[%clk 0:00:59]} 22. Qd2 {[%clk 0:01:58]}  Ne5 {[%clk 0:00:56]} 23. Rf1 {[%clk 0:01:53]}  Nxf3+ {[%clk 0:00:49]} 24. Rxf3 {[%clk 0:01:53]}  Qxf3 {[%clk 0:00:50]} 25. Rh4 {[%clk 0:01:27]}  Rd6 {[%clk 0:00:41]} 26. Rf4 {[%clk 0:01:25]}  Qh5 {[%clk 0:00:36]} 27. Rh4 {[%clk 0:01:17]}  Qf5 {[%clk 0:00:32]} 28. Rf4 {[%clk 0:01:14]}  Qb1+ {[%clk 0:00:32]} 29. Kh2 {[%clk 0:01:13]}  Rh6+ {[%clk 0:00:27]} 30. Kg3 {[%clk 0:01:13]}  Rg6+ {[%clk 0:00:26]} 31. Kh2 {[%clk 0:01:12]}  Qxa2 {[%clk 0:00:20]} 32. d5 {[%clk 0:01:09]}  Qa6 {[%clk 0:00:14]} 33. Qf2 {[%clk 0:01:01]}  Qd6 {[%clk 0:00:11]} 34. Kg1 {[%clk 0:00:58]}  Qxd5 {[%clk 0:00:10]} 35. Bd4 {[%clk 0:00:44]}  Re4 {[%clk 0:00:04]} 36. Rxe4 {[%clk 0:00:36]}  Qxe4 {[%clk 0:00:05]} 37. Bxa7 {[%clk 0:00:35]}  b6 {[%clk 0:00:05]} 38. Bb8 {[%clk 0:00:34]}  Qc6 {[%clk 0:00:02]} 39. Kh1 {[%clk 0:00:26]}  Qb7 {[%clk 0:00:02]} 0-1


[Site "https://www.chess.com"]